fUSD/lending_fUSD_20260517
["ID","MTS","AMOUNT","RATE_DAILY","PERIOD"]
[422460237,1778968242000,-150.0,0.000194,4]
[422460226,1778968242000,-150.0,0.0001934,4]
[422460233,1778968242000,-150.0,0.0001938,4]
[422460228,1778968242000,-150.0,0.00019343,4]
[422460234,1778968242000,-274.29673012,0.00019382,2]
[422460232,1778968242000,-150.0,0.00019364,4]
[422460231,1778968242000,-262.09781016,0.00019362,4]
[422460229,1778968242000,-150.0,0.00019359,4]
[422460255,1778968242000,-262.09781016,0.00019492,4]
[422460235,1778968242000,-262.09781016,0.00019384,4]
[422460230,1778968242000,-150.0,0.00019361,4]
[422460240,1778968242000,-150.0,0.00019407,4]
[422460249,1778968242000,-150.0,0.00019454,4]
[422460239,1778968242000,-262.09781016,0.00019406,4]
[422460250,1778968242000,-262.09781016,0.0001947,4]
[422460251,1778968242000,-1099.96566879,0.00019475,2]
[422460241,1778968242000,-150.0,0.00019411,4]
[422460242,1778968242000,-150.0,0.00019417,4]
[422460245,1778968242000,-150.0,0.00019447,4]
[422460243,1778968242000,-262.09781016,0.00019427,4]
[422460246,1778968242000,-150.0,0.00019447,4]
[422460247,1778968242000,-262.09781016,0.00019449,4]
[422460248,1778968242000,-150.0,0.00019451,4]
[422460236,1778968242000,-170.05315764,0.000194,2]
[422460238,1778968242000,-150.0,0.00019404,4]
[422460281,1778968242000,-150.0,0.00019618,4]
[422460284,1778968242000,-150.0,0.00019638,4]
[422460317,1778968242000,-150.0,0.0001982,4]
[422460318,1778968242000,-150.0,0.00019822,4]
[422460323,1778968242000,-150.0,0.00019843,4]
[422460321,1778968242000,-262.09781016,0.00019837,4]
[422460322,1778968242000,-150.0,0.00019843,4]
[422460324,1778968242000,-150.0,0.00019856,4]
[422460327,1778968242000,-150.0,0.00019861,4]
[422460337,1778968242000,-262.09781016,0.00019924,4]
[422460335,1778968242000,-150.0,0.00019903,4]
[422460338,1778968242000,-150.0,0.00019931,4]
[422460336,1778968242000,-150.0,0.00019917,4]
[422460326,1778968242000,-150.0,0.00019859,4]
[422460329,1778968242000,-150.0,0.00019874,4]
[422460315,1778968242000,-1290.73,0.000198,2]
[422460330,1778968242000,-262.09781016,0.0001988,4]
[422460331,1778968242000,-150.0,0.00019887,4]
[422460333,1778968242000,-150.0,0.00019896,4]
[422460334,1778968242000,-262.09781016,0.00019902,4]
[422460339,1778968242000,-150.0,0.00019933,4]
[422460342,1778968242000,-150.0,0.00019945,4]
[422460341,1778968242000,-2129.0,0.00019938,2]
[422460343,1778968242000,-150.0,0.00019945,4]
[422460344,1778968242000,-150.0,0.00019945,4]
[422460348,1778968242000,-262.09781016,0.00019967,4]
[422460346,1778968242000,-150.0,0.00019959,4]
[422460347,1778968242000,-150.0,0.00019962,2]
[422460345,1778968242000,-262.09781016,0.00019945,4]
[422460283,1778968242000,-150.0,0.00019625,4]
[422460332,1778968242000,-150.0,0.00019893,2]
[422460319,1778968242000,-150.0,0.00019825,2]
[422460328,1778968242000,-150.0,0.00019874,4]
[422460325,1778968242000,-262.09781016,0.00019859,4]
[422460285,1778968242000,-262.09781016,0.00019643,4]
[422460316,1778968242000,-262.09781016,0.00019816,4]
[422460282,1778968242000,-262.09781016,0.00019621,4]
[422460289,1778968242000,-150.0,0.0001966,4]
[422460294,1778968242000,-262.09781016,0.00019686,4]
[422460291,1778968242000,-150.0,0.00019669,4]
[422460293,1778968242000,-150.0,0.00019678,4]
[422460292,1778968242000,-150.0,0.00019675,4]
[422460290,1778968242000,-262.09781016,0.00019665,4]
[422460300,1778968242000,-799.21,0.00019717,2]
[422460298,1778968242000,-150.0,0.00019712,4]
[422460296,1778968242000,-150.0,0.00019703,4]
[422460295,1778968242000,-150.0,0.00019694,4]
[422460297,1778968242000,-262.09781016,0.00019708,4]
[422460302,1778968242000,-150.0,0.00019736,4]
[422460299,1778968242000,-150.0,0.00019713,4]
[422460314,1778968242000,-150.0,0.000198,4]
[422460320,1778968242000,-150.0,0.00019831,4]
[422460305,1778968242000,-262.09781016,0.00019751,4]
[422460311,1778968242000,-150.0,0.00019786,4]
[422460308,1778968242000,-150.0,0.00019767,4]
[422460304,1778968242000,-150.0,0.00019749,4]
[422460309,1778968242000,-262.09781016,0.00019773,4]
[422460306,1778968242000,-150.0,0.00019756,4]
[422460310,1778968242000,-150.0,0.00019778,4]
[422460313,1778968242000,-262.09781016,0.00019794,4]
[422460303,1778968242000,-150.0,0.00019746,4]
[422460301,1778968242000,-262.09781016,0.00019729,4]
[422460312,1778968242000,-150.0,0.00019788,4]
[422460307,1778968242000,-150.0,0.00019767,4]
[422460386,1778968243000,-150.0,0.00020105,4]
[422460395,1778968243000,-150.0,0.00020154,4]
[422460387,1778968243000,-150.0,0.00020113,4]
[422460390,1778968243000,-150.0,0.00020123,4]
[422460392,1778968243000,-262.09781016,0.00020139,4]
[422460389,1778968243000,-262.09781016,0.00020118,4]
[422460384,1778968243000,-262.09781016,0.00020096,4]
[422460391,1778968243000,-150.0,0.0002013,4]
[422460385,1778968243000,-150.0,0.000201,2]
[422460393,1778968243000,-150.0,0.00020149,4]
[422460394,1778968243000,-150.0,0.00020149,4]
[422460397,1778968243000,-262.09781016,0.00020161,4]
[422460388,1778968243000,-150.0,0.00020117,4]
[422460396,1778968243000,-150.0,0.00020155,4]
[422460414,1778968243000,-150.0,0.00020239,4]
[422460406,1778968243000,-531.62,0.00020212,2]
[422460398,1778968243000,-150.0,0.00020169,2]
[422460399,1778968243000,-150.0,0.00020173,4]
[422460407,1778968243000,-500.0,0.00020212,2]
[422460403,1778968243000,-150.0,0.00020195,4]
[422460402,1778968243000,-150.0,0.00020192,4]
[422460401,1778968243000,-150.0,0.00020191,4]
[422460405,1778968243000,-262.09781016,0.00020204,4]
[422460404,1778968243000,-150.0,0.00020197,4]
[422460411,1778968243000,-150.0,0.00020228,4]
[422460415,1778968243000,-262.09781016,0.00020247,4]
[422460408,1778968243000,-150.0,0.00020212,4]
[422460413,1778968243000,-150.0,0.00020238,2]
[422460382,1778968243000,-150.0,0.00020088,4]
[422460400,1778968243000,-262.09781016,0.00020183,4]
[422460383,1778968243000,-150.0,0.00020088,4]
[422460416,1778968243000,-150.0,0.00020259,4]
[422460378,1778968243000,-150.0,0.00020071,4]
[422460352,1778968243000,-150.0,0.00019987,4]
[422460350,1778968243000,-150.0,0.00019974,4]
[422460351,1778968243000,-150.0,0.00019981,4]
[422460365,1778968243000,-212.0,0.0002,2]
[422460354,1778968243000,-354.0,0.0002,2]
[422460355,1778968243000,-400.0,0.0002,2]
[422460357,1778968243000,-334.0,0.0002,2]
[422460353,1778968243000,-262.09781016,0.00019988,4]
[422460366,1778968243000,-150.0,0.00020002,4]
[422460356,1778968243000,-154.0,0.0002,2]
[422460367,1778968243000,-150.0,0.00020007,4]
[422460358,1778968243000,-2917.0,0.0002,2]
[422460363,1778968243000,-740.0,0.0002,2]
[422460362,1778968243000,-577.0,0.0002,2]
[422460359,1778968243000,-1486.69,0.0002,2]
[422460360,1778968243000,-206.0,0.0002,2]
[422460361,1778968243000,-151.0,0.0002,2]
[422460369,1778968243000,-150.0,0.00020018,4]
[422460368,1778968243000,-262.09781016,0.0002001,4]
[422460379,1778968243000,-262.09781016,0.00020075,4]
[422460381,1778968243000,-150.0,0.00020088,4]
[422460370,1778968243000,-150.0,0.00020029,4]
[422460380,1778968243000,-150.0,0.0002008,4]
[422460371,1778968243000,-150.0,0.00020031,2]
[422460375,1778968243000,-150.0,0.00020045,4]
[422460372,1778968243000,-262.09781016,0.00020032,4]
[422460373,1778968243000,-150.0,0.00020034,4]
[422460376,1778968243000,-262.09781016,0.00020053,4]
[422460377,1778968243000,-150.0,0.00020062,4]
[422460374,1778968243000,-150.0,0.00020043,4]
[422460418,1778968243000,-262.09781016,0.00020269,4]
[422460349,1778968243000,-150.0,0.0001997,4]
[422460417,1778968243000,-150.0,0.00020265,4]
[422460451,1778968243000,-262.09781016,0.00020442,4]
[422460456,1778968243000,-150.0,0.00020454,4]
[422460447,1778968243000,-150.0,0.00020412,4]
[422460453,1778968243000,-150.0,0.00020448,4]
[422460457,1778968243000,-262.09781016,0.00020463,4]
[422460458,1778968243000,-150.0,0.00020472,4]
[422460455,1778968243000,-150.0,0.00020454,4]
[422460454,1778968243000,-150.0,0.00020449,4]
[422460460,1778968243000,-262.09781016,0.00020485,4]
[422460470,1778968243000,-1000.0,0.00020528,7]
[422460471,1778968243000,-262.09781016,0.00020528,4]
[422460459,1778968243000,-150.0,0.00020479,4]
[422460461,1778968243000,-150.0,0.00020486,4]
[422460467,1778968243000,-150.0,0.00020515,4]
[422460468,1778968243000,-150.0,0.00020515,4]
[422460464,1778968243000,-262.09781016,0.00020506,4]
[422460463,1778968243000,-150.0,0.00020498,4]
[422460469,1778968243000,-150.0,0.00020522,4]
[422460462,1778968243000,-150.0,0.0002049,4]
[422460465,1778968243000,-150.0,0.00020513,2]
[422460466,1778968243000,-150.0,0.00020515,4]
[422460472,1778968243000,-150.0,0.00020532,4]
[422460474,1778968243000,-468.76,0.00020547,2]
[422460476,1778968243000,-3842.85,0.00020548,2]
[422460479,1778968243000,-3842.83,0.00020548,2]
[422460478,1778968243000,-3842.85,0.00020548,2]
[422460473,1778968243000,-150.0,0.00020541,4]
[422460475,1778968243000,-449.68,0.00020547,2]
[422460412,1778968243000,-150.0,0.00020236,4]
[422460452,1778968243000,-150.0,0.00020444,2]
[422460449,1778968243000,-150.0,0.0002043,4]
[422460477,1778968243000,-3842.85,0.00020548,2]
[422460450,1778968243000,-44076.87585741,0.00020431,2]
[422460448,1778968243000,-262.09781016,0.0002042,4]
[422460409,1778968243000,-150.0,0.00020216,4]
[422460420,1778968243000,-150.0,0.0002028,4]
[422460419,1778968243000,-150.0,0.0002028,4]
[422460421,1778968243000,-262.09781016,0.00020291,4]
[422460424,1778968243000,-150.0,0.00020301,4]
[422460427,1778968243000,-262.09781016,0.00020312,4]
[422460422,1778968243000,-150.0,0.00020301,4]
[422460426,1778968243000,-150.0,0.00020307,2]
[422460425,1778968243000,-150.0,0.00020301,4]
[422460423,1778968243000,-150.0,0.00020301,4]
[422460432,1778968243000,-150.0,0.00020338,4]
[422460429,1778968243000,-150.0,0.00020322,4]
[422460431,1778968243000,-262.09781016,0.00020334,4]
[422460428,1778968243000,-260.47,0.00020321,2]
[422460410,1778968243000,-262.09781016,0.00020226,4]
[422460444,1778968243000,-150.0,0.00020406,4]
[422460430,1778968243000,-150.0,0.00020323,4]
[422460440,1778968243000,-851.9,0.00020381,2]
[422460436,1778968243000,-150.0,0.00020367,4]
[422460435,1778968243000,-150.0,0.00020364,4]
[422460441,1778968243000,-150.0,0.00020387,4]
[422460439,1778968243000,-262.09781016,0.00020377,4]
[422460443,1778968243000,-262.09781016,0.00020399,4]
[422460442,1778968243000,-150.0,0.0002039,4]
[422460445,1778968243000,-150.0,0.00020408,4]
[422460438,1778968243000,-150.0,0.00020375,2]
[422460434,1778968243000,-262.09781016,0.00020355,4]
[422460446,1778968243000,-150.0,0.0002041,4]
[422460433,1778968243000,-150.0,0.00020344,4]
[422460437,1778968243000,-150.0,0.00020375,4]
[422460525,1778968244000,-262.09781016,0.00020765,4]
[422460511,1778968244000,-150.0,0.00020699,4]
[422460515,1778968244000,-150.0,0.0002072,2]
[422460516,1778968244000,-262.09781016,0.00020722,4]
[422460514,1778968244000,-150.0,0.00020716,4]
[422460513,1778968244000,-150.0,0.00020707,4]
[422460518,1778968244000,-150.0,0.00020729,4]
[422460521,1778968244000,-262.09781016,0.00020744,4]
[422460520,1778968244000,-150.0,0.00020744,4]
[422460523,1778968244000,-150.0,0.00020759,4]
[422460517,1778968244000,-150.0,0.00020729,4]
[422460519,1778968244000,-150.0,0.00020741,4]
[422460531,1778968244000,-150.0,0.00020803,4]
[422460529,1778968244000,-262.09781016,0.00020787,4]
[422460524,1778968244000,-150.0,0.00020759,4]
[422460533,1778968244000,-150.0,0.00020814,4]
[422460526,1778968244000,-150.0,0.00020772,4]
[422460527,1778968244000,-150.0,0.0002078,4]
[422460532,1778968244000,-262.09781016,0.00020809,4]
[422460530,1778968244000,-150.0,0.00020788,2]
[422460534,1778968244000,-150.0,0.00020817,4]
[422460535,1778968244000,-150.0,0.00020825,4]
[422460543,1778968244000,-150.0,0.00020857,2]
[422460538,1778968244000,-150.0,0.00020836,4]
[422460522,1778968244000,-150.0,0.00020747,4]
[422460537,1778968244000,-150.0,0.00020836,4]
[422460528,1778968244000,-150.0,0.00020783,4]
[422460512,1778968244000,-262.09781016,0.00020701,4]
[422460491,1778968244000,-150.0,0.00020596,4]
[422460506,1778968244000,-262.09781016,0.00020658,4]
[422460536,1778968244000,-262.09781016,0.0002083,4]
[422460484,1778968244000,-150.0,0.00020568,4]
[422460481,1778968244000,-262.09781016,0.0002055,4]
[422460480,1778968244000,-19032.04,0.00020548,2]
[422460482,1778968244000,-150.0,0.00020558,4]
[422460483,1778968244000,-150.0,0.00020559,4]
[422460485,1778968244000,-262.09781016,0.00020571,4]
[422460497,1778968244000,-150.0,0.00020628,4]
[422460496,1778968244000,-150.0,0.00020622,4]
[422460495,1778968244000,-150.0,0.00020616,4]
[422460487,1778968244000,-150.0,0.00020574,4]
[422460490,1778968244000,-262.09781016,0.00020593,4]
[422460489,1778968244000,-150.0,0.00020585,4]
[422460488,1778968244000,-150.0,0.00020582,2]
[422460492,1778968244000,-150.0,0.00020601,4]
[422460493,1778968244000,-262.09781016,0.00020614,4]
[422460498,1778968244000,-150.0,0.00020633,4]
[422460510,1778968244000,-150.0,0.00020686,4]
[422460500,1778968244000,-150.0,0.00020643,4]
[422460504,1778968244000,-150.0,0.00020658,4]
[422460503,1778968244000,-150.0,0.00020658,4]
[422460508,1778968244000,-150.0,0.00020672,4]
[422460505,1778968244000,-150.0,0.00020658,4]
[422460499,1778968244000,-262.09781016,0.00020636,4]
[422460507,1778968244000,-150.0,0.0002067,4]
[422460501,1778968244000,-2000.0,0.00020644,2]
[422460509,1778968244000,-262.09781016,0.00020679,4]
[422460502,1778968244000,-150.0,0.00020651,2]
[422460540,1778968244000,-262.09781016,0.00020852,4]
[422460541,1778968244000,-150.0,0.00020854,4]
[422460589,1778968244000,-150.0,0.00021065,4]
[422460574,1778968244000,-525.17782738,0.00021,2]
[422460578,1778968244000,-262.09781016,0.00021003,4]
[422460576,1778968244000,-212.0,0.00021,2]
[422460579,1778968244000,-150.0,0.00021014,4]
[422460575,1778968244000,-740.0,0.00021,2]
[422460580,1778968244000,-150.0,0.00021021,4]
[422460581,1778968244000,-262.09781016,0.00021024,4]
[422460588,1778968244000,-150.0,0.00021064,2]
[422460586,1778968244000,-262.09781016,0.00021046,4]
[422460585,1778968244000,-150.0,0.00021038,4]
[422460593,1778968244000,-150.0,0.00021075,4]
[422460582,1778968244000,-150.0,0.00021028,4]
[422460591,1778968244000,-262.09781016,0.00021068,4]
[422460587,1778968244000,-150.0,0.00021049,4]
[422460594,1778968244000,-150.0,0.00021077,4]
[422460584,1778968244000,-150.0,0.00021035,4]
[422460583,1778968244000,-500.0,0.00021034,2]
[422460590,1778968244000,-150.0,0.00021065,4]
[422460592,1778968244000,-150.0,0.00021071,4]
[422460598,1778968244000,-260.47,0.00021103,2]
[422460601,1778968244000,-150.0,0.00021112,4]
[422460599,1778968244000,-150.0,0.00021108,4]
[422460597,1778968244000,-150.0,0.00021103,4]
[422460596,1778968244000,-1613.0,0.00021101,2]
[422460595,1778968244000,-262.09781016,0.00021089,4]
[422460539,1778968244000,-150.0,0.00020847,4]
[422460600,1778968244000,-262.09781016,0.00021111,4]
[422460573,1778968244000,-577.0,0.00021,2]
[422460562,1778968244000,-150.0,0.00020965,4]
[422460577,1778968244000,-150.0,0.00021001,4]
[422460564,1778968244000,-262.09781016,0.00020981,4]
[422460546,1778968244000,-150.0,0.0002089,4]
[422460545,1778968244000,-262.09781016,0.00020873,4]
[422460542,1778968244000,-150.0,0.00020857,4]
[422460544,1778968244000,-150.0,0.00020867,4]
[422460547,1778968244000,-150.0,0.00020891,4]
[422460552,1778968244000,-150.0,0.00020925,4]
[422460557,1778968244000,-150.0,0.00020942,4]
[422460550,1778968244000,-150.0,0.00020909,4]
[422460569,1778968244000,-156.0,0.00021,2]
[422460551,1778968244000,-262.09781016,0.00020917,4]
[422460549,1778968244000,-150.0,0.000209,4]
[422460553,1778968244000,-150.0,0.00020926,2]
[422460554,1778968244000,-150.0,0.00020928,4]
[422460556,1778968244000,-262.09781016,0.00020938,4]
[422460555,1778968244000,-150.0,0.00020934,4]
[422460572,1778968244000,-151.0,0.00021,2]
[422460568,1778968244000,-354.0,0.00021,2]
[422460559,1778968244000,-150.0,0.00020942,4]
[422460567,1778968244000,-150.0,0.00020995,2]
[422460565,1778968244000,-150.0,0.00020985,4]
[422460566,1778968244000,-150.0,0.00020993,4]
[422460571,1778968244000,-206.0,0.00021,2]
[422460560,1778968244000,-150.0,0.00020951,4]
[422460563,1778968244000,-150.0,0.00020977,4]
[422460561,1778968244000,-262.09781016,0.0002096,4]
[422460548,1778968244000,-262.09781016,0.00020895,4]
[422460558,1778968244000,-150.0,0.00020942,4]
[422460570,1778968244000,-334.0,0.00021,2]
[422460660,1778968245000,-151.31876581,0.0002137,4]
[422460643,1778968245000,-150.0,0.00021339,2]
[422460650,1778968245000,-250.45734393,0.0002137,4]
[422460645,1778968245000,-150.0,0.0002136,2]
[422460644,1778968245000,-262.09781016,0.00021348,4]
[422460646,1778968245000,-150.0,0.0002136,2]
[422460647,1778968245000,-150.0,0.0002136,2]
[422460648,1778968245000,-268.0,0.0002136,2]
[422460641,1778968245000,-150.0,0.00021333,4]
[422460640,1778968245000,-150.0,0.00021328,4]
[422460642,1778968245000,-44076.87585741,0.00021335,2]
[422460639,1778968245000,-150.0,0.00021327,4]
[422460662,1778968245000,-200.0,0.00021372,2]
[422460638,1778968245000,-262.09781016,0.00021327,4]
[422460649,1778968245000,-217.75735615,0.0002137,4]
[422460665,1778968245000,-200.0,0.00021372,2]
[422460661,1778968245000,-262.09781016,0.0002137,4]
[422460655,1778968245000,-174.15018565,0.0002137,4]
[422460653,1778968245000,-176.6685321,0.0002137,4]
[422460656,1778968245000,-153.63162992,0.0002137,4]
[422460654,1778968245000,-202.29802685,0.0002137,4]
[422460657,1778968245000,-266.61063862,0.0002137,4]
[422460652,1778968245000,-298.59600068,0.0002137,4]
[422460658,1778968245000,-6463.45,0.0002137,2]
[422460659,1778968245000,-222.83796618,0.0002137,4]
[422460667,1778968245000,-200.0,0.00021372,2]
[422460664,1778968245000,-200.0,0.00021372,2]
[422460672,1778968245000,-150.0,0.00021408,2]
[422460669,1778968245000,-200.0,0.00021372,2]
[422460636,1778968245000,-262.09781016,0.00021305,4]
[422460651,1778968245000,-298.2801607,0.0002137,4]
[422460637,1778968245000,-150.0,0.00021326,4]
[422460602,1778968245000,-150.0,0.00021113,4]
[422460629,1778968245000,-150.0,0.0002127,2]
[422460608,1778968245000,-262.09781016,0.00021154,4]
[422460607,1778968245000,-150.0,0.00021152,4]
[422460604,1778968245000,-262.09781016,0.00021132,4]
[422460606,1778968245000,-150.0,0.00021149,4]
[422460603,1778968245000,-150.0,0.00021118,4]
[422460605,1778968245000,-150.0,0.00021133,2]
[422460615,1778968245000,-150.0,0.00021195,4]
[422460612,1778968245000,-262.09781016,0.00021176,4]
[422460621,1778968245000,-150.0,0.00021222,4]
[422460614,1778968245000,-150.0,0.00021192,4]
[422460622,1778968245000,-150.0,0.00021239,4]
[422460616,1778968245000,-262.09781016,0.00021197,4]
[422460609,1778968245000,-150.0,0.00021156,4]
[422460611,1778968245000,-150.0,0.0002116,4]
[422460626,1778968245000,-150.0,0.00021259,4]
[422460610,1778968245000,-150.0,0.00021156,4]
[422460613,1778968245000,-150.0,0.00021186,4]
[422460619,1778968245000,-150.0,0.00021202,4]
[422460617,1778968245000,-150.0,0.00021199,4]
[422460625,1778968245000,-150.0,0.00021244,4]
[422460635,1778968245000,-150.0,0.00021296,4]
[422460624,1778968245000,-150.0,0.00021242,4]
[422460627,1778968245000,-262.09781016,0.00021262,4]
[422460623,1778968245000,-262.09781016,0.0002124,4]
[422460630,1778968245000,-150.0,0.00021281,4]
[422460633,1778968245000,-150.0,0.00021284,4]
[422460634,1778968245000,-150.0,0.00021286,4]
[422460628,1778968245000,-150.0,0.00021263,4]
[422460632,1778968245000,-262.09781016,0.00021284,4]
[422460631,1778968245000,-150.0,0.00021283,4]
[422460618,1778968245000,-150.0,0.00021201,2]
[422460676,1778968245000,-150.0,0.00021546,2]
[422460620,1778968245000,-262.09781016,0.00021219,4]
[422460675,1778968245000,-799.21,0.0002151,2]
[422460705,1778968245000,-151.09078876,0.00022407,2]
[422460715,1778968245000,-151.0,0.00022634,2]
[422460716,1778968245000,-2000.0,0.00022665,2]
[422460717,1778968245000,-2000.0,0.00022665,2]
[422460707,1778968245000,-1755.33,0.00022466,2]
[422460714,1778968245000,-151.0,0.00022634,2]
[422460710,1778968245000,-2000.0,0.00022521,2]
[422460709,1778968245000,-477.8,0.00022484,2]
[422460712,1778968245000,-150.0,0.00022603,2]
[422460713,1778968245000,-477.8,0.00022634,2]
[422460711,1778968245000,-477.8,0.00022559,2]
[422460708,1778968245000,-1573.07,0.00022466,2]
[422460728,1778968245000,-8466.0,0.00022822,2]
[422460719,1778968245000,-2000.0,0.00022665,2]
[422460706,1778968245000,-151.09078875,0.00022407,2]
[422460727,1778968245000,-477.8,0.00022784,2]
[422460730,1778968245000,-173.24,0.00022861,2]
[422460729,1778968245000,-477.8,0.00022858,2]
[422460726,1778968245000,-477.8,0.00022709,2]
[422460718,1778968245000,-2000.0,0.00022665,2]
[422460725,1778968245000,-2000.0,0.00022665,2]
[422460721,1778968245000,-2000.0,0.00022665,2]
[422460722,1778968245000,-2000.0,0.00022665,2]
[422460723,1778968245000,-2000.0,0.00022665,2]
[422460724,1778968245000,-2000.0,0.00022665,2]
[422460732,1778968245000,-354.0,0.00023,2]
[422460735,1778968245000,-206.0,0.00023,2]
[422460733,1778968245000,-334.0,0.00023,2]
[422460734,1778968245000,-363.0,0.00023,30]
[422460666,1778968245000,-200.0,0.00021372,2]
[422460720,1778968245000,-2000.0,0.00022665,2]
[422460703,1778968245000,-851.9,0.00022353,2]
[422460731,1778968245000,-477.8,0.00022933,2]
[422460697,1778968245000,-740.0,0.00022,2]
[422460693,1778968245000,-334.0,0.00022,2]
[422460663,1778968245000,-200.0,0.00021372,2]
[422460674,1778968245000,-150.0,0.00021477,2]
[422460671,1778968245000,-170.0,0.00021372,2]
[422460668,1778968245000,-200.0,0.00021372,2]
[422460673,1778968245000,-6453.0,0.00021459,2]
[422460678,1778968245000,-150.0,0.00021614,2]
[422460688,1778968245000,-5000.0,0.00021918,2]
[422460687,1778968245000,-3074.97,0.00021918,2]
[422460680,1778968245000,-150.0,0.00021752,2]
[422460686,1778968245000,-289.0529305,0.00021918,3]
[422460681,1778968245000,-150.0,0.00021821,2]
[422460685,1778968245000,-500.0,0.000219,7]
[422460682,1778968245000,-515.53,0.00021831,2]
[422460677,1778968245000,-3620.0,0.00021598,2]
[422460670,1778968245000,-200.0,0.00021372,2]
[422460684,1778968245000,-150.0,0.0002189,2]
[422460695,1778968245000,-151.0,0.00022,2]
[422460689,1778968245000,-1058.91185711,0.00021918,2]
[422460692,1778968245000,-450.0,0.00022,2]
[422460702,1778968245000,-510.0,0.00022261,2]
[422460700,1778968245000,-16956.59816678,0.00022132,2]
[422460701,1778968245000,-44076.87585741,0.00022238,2]
[422460691,1778968245000,-354.0,0.00022,2]
[422460704,1778968245000,-1290.73,0.000224,7]
[422460698,1778968245000,-212.0,0.00022,2]
[422460690,1778968245000,-150.0,0.00021959,2]
[422460694,1778968245000,-206.0,0.00022,2]
[422460679,1778968245000,-150.0,0.00021683,2]
[422460696,1778968245000,-577.0,0.00022,2]
[422460699,1778968245000,-240.62685798,0.00022027,2]
[422460683,1778968245000,-1486.69,0.00021849,2]
[422460776,1778968246000,-531.62,0.00023542,2]
[422460761,1778968246000,-477.8,0.00023308,2]
[422460762,1778968246000,-3543.0,0.00023329,2]
[422460781,1778968246000,-500.0,0.00023542,2]
[422460768,1778968246000,-284.625,0.00023329,2]
[422460775,1778968246000,-477.8,0.00023533,2]
[422460773,1778968246000,-477.8,0.00023383,2]
[422460771,1778968246000,-150.01,0.00023346,2]
[422460758,1778968246000,-1198.758275,0.00023242,2]
[422460767,1778968246000,-1242.749,0.00023329,2]
[422460774,1778968246000,-477.8,0.00023458,2]
[422460780,1778968246000,-531.68,0.00023542,2]
[422460769,1778968246000,-930.0,0.00023329,2]
[422460791,1778968246000,-2000.0,0.00023557,2]
[422460786,1778968246000,-2000.0,0.00023557,2]
[422460782,1778968246000,-500.0,0.00023542,2]
[422460789,1778968246000,-2000.0,0.00023557,2]
[422460793,1778968246000,-2000.0,0.00023557,2]
[422460792,1778968246000,-2000.0,0.00023557,2]
[422460787,1778968246000,-2000.0,0.00023557,2]
[422460785,1778968246000,-2000.0,0.00023557,2]
[422460784,1778968246000,-2000.0,0.00023557,2]
[422460790,1778968246000,-2000.0,0.00023557,2]
[422460794,1778968246000,-2000.0,0.00023557,2]
[422460788,1778968246000,-2000.0,0.00023557,2]
[422460795,1778968246000,-2000.0,0.00023557,2]
[422460778,1778968246000,-531.62,0.00023542,2]